Cogmind - Beta 16 @@@ ROGUE MODE // 2026.01.04 @ 20:11:58 Player: StaticNoob Result: Escaped! Performance ------------- Evolutions (9) 4500 Regions Visited (24) 4800 Robots Destroyed (433) 2165 Value Destroyed (19218) 19218 Prototype IDs (43) 860 Alien Tech Used (0) 0 Bonus (10612) 10612 TOTAL SCORE: 42155 Bonus ------- High Alert Combat Kills 1295 Follower Combat Kills 1199 Entered Garrisons 1400 Used RIF Installer 3500 Aligned with FarCom 300 Win 3000 Friendly Fire -82 Cogmind --------- Core Integrity 719/1600 Matter 112/300 Energy 12/100 System Corruption 6% Temperature Cool (10) Movement Treading (180) Location To Epsilon Eridani Parts ------- > --- POWER (3) -------- (None) > --- PROPULSION (3) --- Improved Heavy Siege Treads > --- UTILITY (15) ----- Advanced Targeting Computer Advanced Target Analyzer Graphene Brace Relay Coupler [NC] (27) Relay Coupler [Sentry] (6) > --- WEAPON (4) ------- Compact HERF Cannon > --- INVENTORY (5) ---- Improved Heavy Siege Treads Relay Coupler [Sentry] (24) Fusion Bomb Launcher Peak State ------------ > --- POWER ------------ Quantum Reactor Light Quantum Reactor Reinforced Quantum Reactor > --- PROPULSION ------- Enhanced Armored Medium Treads Advanced Heavy Siege Treads > --- UTILITY ---------- Advanced Heat Sink Improved Coolant Injector Huge Storage Unit Advanced Targeting Computer Advanced Target Analyzer Improved Kinecellerator Improved Weapon Cycler Advanced Phase Shifter Powered Armor Graphene Brace Improved Thermal Shield Force Field Experimental System Shield Relay Coupler [NC] Relay Coupler [Sentry] > --- WEAPON ----------- Enhanced Nova Cannon KE Penetrator KE Penetrator Linear Accelerator > --- INVENTORY -------- Medium Treads Biometal Heavy Treads Compact Wheel Q-thruster Q-thruster Q-thruster Advanced Heat Sink Matter Compressor Heavy Armor Plating EM Shield Advanced Point Defense System Relay Coupler [NC] Relay Coupler [NC] Relay Coupler [Swarmer] Relay Coupler [Swarmer] Relay Coupler [Grunt] Relay Coupler [Sentry] Relay Coupler [Sentry] Long-range Tractor Beam Compact HERF Cannon Fusion Bomb Launcher Advanced Remote Datajack Improved Plasma Cutter [Rating: 173] Favorites ----------- Power Neutrino Core Engine Reinforced Deuterium Engine Power Core Neutrino Core Reactor Quantum Reactor Propulsion Light Treads Treads Light Treads Leg Carbon-fiber Leg Wheel Compact Wheel Utility Advanced Heat Sink Device Advanced Heat Sink Storage High-capacity Storage Unit Processor Advanced Targeting Computer Hackware Relay Coupler [NC] Protection Improved Weapon Shielding Weapon XL Autogun Subcomponent Energy Gun Medium Laser Energy Cannon Enhanced Nova Cannon Ballistic Gun XL Autogun Subcomponent Ballistic Cannon Linear Accelerator Launcher Fusion Bomb Launcher Special Weapon Remote Datajack Build | -11 -10 -10 -9 -9 -9 -8 -8 -8 -8 -8 -8 -8 -7 -7 -7 -7 -6 -6 -5 -5 -4 -3 -2 -1 ------- Run | Yrd Mat Min Mat Min Exi Min Mat Gar Mat Gar Mat Gar Fac Gar Fac Gar Fac Gar Fac Gar Fac Res Res Acc Slots Evolved 18 | . . . 2 . . . 2 . . . . . 2 . . . 2 . 2 . 2 2 2 2 Power 2 | . . . . . . . . . . . . . . . . . . . . . 1 . . 1 Propulsion 1 | . . . . . . . . . . . . . . . . . . . 1 . . . . . Utility 13 | . . . 1 . . . 1 . . . . . 2 . . . 2 . 1 . 1 2 2 1 Weapon 2 | . . . 1 . . . 1 . . . . . . . . . . . . . . . . . Parts Attached 186 | 6 8 4 20 1 . 3 6 2 3 5 1 8 4 2 4 3 3 5 11 3 17 30 22 15 Power 24 | 1 2 1 1 . . 2 . . 1 . . 1 . 1 1 . . . 1 . 1 4 3 4 Engine 9 | 1 2 1 1 . . 2 . . 1 . . . . . . . . . 1 . . . . . Core 4 | . . . . . . . . . . . . 1 . 1 1 . . . . . 1 . . . Reactor 11 | . . . . . . . . . . . . . . . . . . . . . . 4 3 4 Propulsion 39 | 2 2 1 7 . . 1 1 . 1 1 1 . . 1 1 . . 3 3 1 4 3 4 2 Treads 26 | 2 2 . 6 . . . 1 . 1 . 1 . . . 1 . . 2 2 . 1 2 3 2 Leg 1 | . . . . . . . . . . . . . . . . . . . . 1 . . . . Wheel 12 | . . 1 1 . . 1 . . . 1 . . . 1 . . . 1 1 . 3 1 1 . Hover . | . . . . . . . . . . . . . . . . . . . . . . . . . Flight . | . . . . . . . . . . . . . . . . . . . . . . . . . Utility 79 | 2 2 . 5 1 . . 4 2 1 4 . 3 4 . 1 3 3 2 4 1 8 15 9 5 Device 38 | 1 1 . 3 1 . . 2 1 . 3 . 1 . . . . 2 1 2 . 6 10 2 2 Storage 4 | 1 1 . . . . . . . . . . . 1 . . . . . . . . 1 . . Processor 11 | . . . 1 . . . . . . . . 1 2 . . . . . . . 1 3 2 1 Hackware 13 | . . . . . . . 2 . . . . . . . 1 3 . . 2 1 . . 2 2 Protection 13 | . . . 1 . . . . 1 1 1 . 1 1 . . . 1 1 . . 1 1 3 . Artifact . | . . . . . . . . . . . . . . . . . . . . . . . . . Weapon 44 | 1 2 2 7 . . . 1 . . . . 4 . . 1 . . . 3 1 4 8 6 4 Energy Gun 2 | . 1 . . . . . . . . . . . . . . . . . . . . . . 1 Energy Cannon 4 | . . . . . . . . . . . . . . . . . . . . . . 2 1 1 Ballistic Gun 32 | 1 1 2 7 . . . 1 . . . . 4 . . . . . . 3 1 4 5 2 1 Ballistic Cannon 2 | . . . . . . . . . . . . . . . . . . . . . . . 2 . Launcher 1 | . . . . . . . . . . . . . . . . . . . . . . . 1 . Special Weapon 3 | . . . . . . . . . . . . . . . 1 . . . . . . 1 . 1 Impact Weapon . | . . . . . . . . . . . . . . . . . . . . . . . . . Slashing Weapon . | . . . . . . . . . . . . . . . . . . . . . . . . . Piercing Weapon . | . . . . . . . . . . . . . . . . . . . . . . . . . Special Melee Weapon . | . . . . . . . . . . . . . . . . . . . . . . . . . Unidentified Prototypes 7 | . . . . . . . . . . . . 1 . . . . . 1 1 . . 2 1 1 Corrupted Parts 3 | . . . . . . . . . . . . . . . . . . . . . . . 2 1 System Corruption 9 | . . . . . . . . . . . . . . . . . . . . . . . 7 2 Parts Lost 102 | . 2 5 5 1 . 4 . . 1 4 . 6 . . . 1 . 2 8 3 9 13 10 28 Power 13 | . . 1 1 1 . . . . . . . 1 . . . . . . . . . 2 2 5 Propulsion 21 | . 1 2 1 . . 1 . . . 1 . 2 . . . . . 1 3 1 1 . 4 3 Utility 38 | . . . 1 . . . . . 1 3 . 3 . . . 1 . 1 2 1 5 6 1 13 Weapon 30 | . 1 2 2 . . 3 . . . . . . . . . . . . 3 1 3 5 3 7 Highest Loss Streak 24 | . 1 5 3 1 . 3 . . 1 1 . 6 . . . 1 . 2 4 2 3 3 3 24 To Critical Strikes 1 | . . . . . . . . . . . . . . . . . . . . 1 . . . . Average Backups 18 | 1 9 14 18 19 18 16 18 19 19 19 19 18 17 18 19 18 18 18 17 17 17 21 23 20 Power . | . . 1 . . . . 1 1 1 1 1 . 1 1 . . 1 2 1 1 . . . 1 Propulsion 2 | . 2 3 4 6 6 5 5 6 5 3 3 2 1 2 2 2 2 2 1 . 1 2 2 4 Utility 11 | . 5 7 9 10 10 10 11 11 12 13 14 13 11 12 14 13 11 10 10 11 11 13 15 11 Weapon 1 | . . 2 3 3 1 1 . . . . . . . . . . 1 1 2 2 2 3 3 2 Tool/Special . | . . . . . . . . . . . . . . . . . . . . . . . . . Unused Backups 43 | . . . 1 1 3 . 1 . 3 1 . 1 . 2 2 2 . 1 6 . . 1 4 14 Power 4 | . . . . . . . . . 1 . . . . 2 . . . . 1 . . . . . Propulsion 10 | . . . 1 1 . . 1 . 1 1 . . . . . . . . . . . . . 5 Utility 19 | . . . . . 1 . . . . . . . . . 2 2 . 1 1 . . . 4 8 Weapon 5 | . . . . . 2 . . . . . . . . . . . . . 2 . . 1 . . Tool/Special 5 | . . . . . . . . . 1 . . 1 . . . . . . 2 . . . . 1 Average Slot Usage (%) 92 | . 98 96 99 94 88 90 71 72 72 71 71 80 99 100 100 99 99 100 99 99 99 98 96 91 Engine 4 | . 13 12 11 6 . 10 9 9 9 9 9 5 . . . . . . 2 5 5 2 . . Core 2 | . . . . . . . . . . . . 3 7 7 7 7 6 6 2 . 5 1 . . Reactor 1 | . . . . . . . . . . . . . . . . . . . . . . 4 7 11 Treads 9 | . 27 24 10 11 11 11 9 9 9 9 9 12 15 14 7 7 6 6 11 7 5 4 4 7 Wheel 6 | . . 3 11 11 11 10 9 9 9 9 8 5 . . 7 7 6 5 4 5 9 9 6 . Device 18 | . 13 14 11 20 22 22 16 15 18 15 18 14 7 7 7 6 19 20 18 22 22 27 30 34 Storage 7 | . 14 14 11 11 11 11 9 9 9 9 9 9 7 7 7 7 6 6 5 5 5 4 4 3 Processor 8 | . . . 8 1 . . . . . . . 3 15 15 15 15 13 13 11 11 14 16 6 8 Hackware 4 | . . . . . . . 2 4 . . . . . . 6 12 13 8 10 11 6 4 7 8 Protection 5 | . . . 1 . . . 7 6 9 11 9 8 14 15 7 2 . 4 3 . 2 1 7 2 Ballistic Gun 19 | . 18 26 32 33 33 25 9 9 9 9 9 19 30 30 29 29 26 26 22 23 20 18 8 7 Peak Build Rating 173 | 8 9 9 18 17 20 21 54 54 55 55 55 55 54 56 56 57 65 75 82 76 89 130 155 173 Average Rating 71 | 4 8 8 15 16 18 20 52 53 53 54 54 49 53 55 54 56 64 70 78 74 82 115 141 163 On Entrance 51 | . 8 9 8 17 17 20 18 54 54 54 55 55 46 54 56 56 57 65 73 76 74 89 123 155 Avg Prop Armor Cover (%) 8 | . . 14 9 9 10 10 6 7 7 6 6 6 . 6 9 11 10 8 14 8 5 6 5 . Naked Turns . | . . . . . . . . . . . . . . . . . . . . . . . . . Heaviest Build 212 | 13 50 48 57 56 51 54 66 63 68 73 73 73 71 77 77 69 72 75 82 79 93 159 188 212 Greatest Support 115 | 40 40 40 20 16 16 16 12 12 12 16 16 40 40 40 10 10 10 40 16 48 32 32 115 115 Greatest Overweight (x) 19 | . 1 2 3 3 3 4 5 5 5 5 4 19 1 7 7 6 7 7 6 6 7 9 11 4 Average Overweight (x) 3 | . . 1 2 3 3 3 4 4 5 4 4 3 1 1 6 6 7 5 4 4 3 3 4 1 Largest Inventory Capacity 25 | 8 20 20 20 20 20 20 20 20 20 20 20 20 20 20 20 20 20 20 20 20 20 25 25 25 Average Capacity 20 | 7 19 20 20 20 20 20 20 20 20 20 20 20 20 20 20 20 20 20 20 20 20 23 25 24 Most Carried 25 | 2 16 16 20 20 20 20 20 20 20 20 20 20 20 20 20 20 20 20 20 20 20 25 25 25 Average Carried 19 | 1 9 14 18 19 19 19 18 19 19 19 19 19 19 19 19 19 19 19 18 18 18 22 24 23 Final Capacity 25 | 8 20 20 20 20 20 20 20 20 20 20 20 20 20 20 20 20 20 20 20 20 20 25 25 5 Final Carried 25 | 2 16 11 20 20 20 20 20 20 19 19 20 19 20 20 20 20 20 19 18 20 20 24 25 4 Class Distribution -------------------- 30% | Bothacker-Gunner 15% | Botlord-Gunner 14% | Botlord-Tank 14% | Scavenger-Skirmisher 11% | Bothacker-Tank 6% | Mutant Dominant Class ---------------- Mutant | -10/Materials Mutant | -10/Mines Scavenger-Skirmisher | -9/Materials Scavenger-Skirmisher | -9/Mines Scavenger-Skirmisher | -9/Exiles Scavenger-Skirmisher | -8/Mines Skirmisher | -8/Materials Skirmisher | -8/Garrison Scavenger-Skirmisher | -8/Materials Bothacker-Tank | -8/Garrison Bothacker-Tank | -8/Materials Bothacker-Tank | -8/Garrison Bothacker-Gunner | -7/Factory Bothacker-Gunner | -7/Garrison Bothacker-Gunner | -7/Factory Bothacker-Gunner | -7/Garrison Bothacker-Gunner | -6/Factory Bothacker-Gunner | -6/Garrison Bothacker-Gunner | -5/Factory Bothacker-Gunner | -5/Garrison Botlord-Gunner | -4/Factory Botlord-Gunner | -3/Research Botlord-Tank | -2/Research Botlord-Tank | -1/Access Resources | -11 -10 -10 -9 -9 -9 -8 -8 -8 -8 -8 -8 -8 -7 -7 -7 -7 -6 -6 -5 -5 -4 -3 -2 -1 ----------- Run | Yrd Mat Min Mat Min Exi Min Mat Gar Mat Gar Mat Gar Fac Gar Fac Gar Fac Gar Fac Gar Fac Res Res Acc Matter Collected 15175 | 233 335 . 813 126 . 160 268 528 434 1292 619 652 54 405 150 669 356 504 1383 381 1222 2029 1519 1043 Remotely 4368 | . . . . . . . 28 450 134 . . . . . . 275 . . 832 381 212 844 511 701 Salvage Created 20103 | 43 468 . 1590 171 . 128 463 466 597 1328 1029 923 28 654 160 669 496 909 2027 473 1265 3362 1810 1044 Parts 1078 | 6 38 . 113 11 . 6 28 25 38 76 74 46 3 37 10 33 27 35 100 21 79 147 64 61 Haulers Intercepted 24 | . 1 . 3 . . . 2 . 1 . 4 . . . 1 . 1 . 6 . 1 4 . . Recyclers Shooed 5 | . . . 2 . . . . . . . . . . . . . . . . . 1 1 . 1 Parts Field Recycled . | . . . . . . . . . . . . . . . . . . . . . . . . . Retrieved Matter . | . . . . . . . . . . . . . . . . . . . . . . . . . Parts Self-Destructed . | . . . . . . . . . . . . . . . . . . . . . . . . . Prevented . | . . . . . . . . . . . . . . . . . . . . . . . . . Parts Restored . | . . . . . . . . . . . . . . . . . . . . . . . . . Kills | -11 -10 -10 -9 -9 -9 -8 -8 -8 -8 -8 -8 -8 -7 -7 -7 -7 -6 -6 -5 -5 -4 -3 -2 -1 ------- Run | Yrd Mat Min Mat Min Exi Min Mat Gar Mat Gar Mat Gar Fac Gar Fac Gar Fac Gar Fac Gar Fac Res Res Acc Combat Hostiles Destroyed 329 | . 11 1 29 3 . 5 5 11 9 31 16 19 . 16 3 15 6 16 15 12 25 35 25 21 Guns 298 | . 11 1 29 3 . 5 5 11 9 31 16 19 . 16 3 15 6 16 15 12 25 35 7 8 Cannons 22 | . . . . . . . . . . . . . . . . . . . . . . . 14 8 AOE 9 | . . . . . . . . . . . . . . . . . . . . . . . 4 5 Classes Destroyed 21 | 1 5 1 5 . . . . 1 1 2 . . . 1 . . . 1 1 . 1 . 1 . Worker 23 | . . . 3 . . . . . . . 1 . 1 . . . . . 4 . 1 7 5 1 Builder 9 | . . . 2 . . . . . 3 . 1 . . . . . . . 2 . . . . 1 Tunneler 5 | 2 1 . . . . . . . . . . . . . . . . . 1 . 1 . . . Hauler 24 | . 1 . 3 . . . 2 . 1 . 4 . . . 1 . 1 . 6 . 1 4 . . Recycler 9 | . . . 2 1 . . . . . . . . . . . . . . 2 . . 2 2 . Mechanic 1 | . . . . . . . . . . . . . . . . . . . . . 1 . . . Operator 13 | . 2 . 2 . . . 2 . 1 . 2 . . . . . . . 1 . 1 1 1 . Watcher 18 | . 3 . 2 . . . 2 . . . 1 . . . . . 2 . 5 . . 2 1 . Swarmer 69 | . 5 . 7 . . 3 . 3 . 6 3 3 . 3 1 3 . 3 . 7 8 5 3 6 Cutter 2 | . . . . . . . . . . . . . . 2 . . . . . . . . . . Grunt 102 | . 6 . 12 3 . 2 2 4 5 10 4 8 . 9 1 7 2 9 . 3 . 6 8 1 Brawler 4 | . . . 1 . . . . 1 . 1 1 . . . . . . . . . . . . . Duelist 4 | . . . . . . . . 2 . 1 . . . . . . . 1 . . . . . . Sentry 47 | . . . 9 . . . 3 1 3 4 6 3 . 1 . 1 . 2 2 2 2 6 1 1 Demolisher 1 | . . 1 . . . . . . . . . . . . . . . . . . . . . . Specialist 4 | . . . . . . . . . . 2 . . . . . . . . . . . 2 . . Hunter 36 | . . . . . . . . . 1 3 2 2 . . . 2 2 . 5 . 5 7 4 3 Programmer 55 | . . . . . . . . . . 4 . 4 . 1 1 3 2 . 6 . 10 7 8 9 Heavy 4 | . . . . . . . . . . . . . . . . . . . 2 . . 1 . 1 Behemoth 1 | . . . . . . . . . . . . . . . . . . . . . . . 1 . Striker 1 | . . . . . . . . . . . . . . . . . . 1 . . . . . . Thug 1 | . . . . . . . . . . . . . . . . . . . . . . 1 . . Best Kill Streak 10 | 1 3 1 6 4 . 3 4 10 7 6 6 10 1 7 2 5 2 7 8 6 9 6 7 6 Combat Bots Only 10 | . 3 1 5 3 . 3 2 10 3 6 4 10 . 7 2 5 2 7 4 6 8 5 6 6 Max Kills in Single Turn 3 | 1 1 1 3 2 . 2 1 2 2 1 2 2 1 2 1 2 1 1 3 2 2 2 2 2 Gunslinging 1 | . . . 1 1 . . . . . . . . . 1 . 1 . . . 1 1 1 . . Exploded 2 | . . . . . . . . . . . . . . . . . . . . . . . 2 2 Melee . | . . . . . . . . . . . . . . . . . . . . . . . . . Uniques/NPCs Destroyed . | . . . . . . . . . . . . . . . . . . . . . . . . . Combat | -11 -10 -10 -9 -9 -9 -8 -8 -8 -8 -8 -8 -8 -7 -7 -7 -7 -6 -6 -5 -5 -4 -3 -2 -1 -------- Run | Yrd Mat Min Mat Min Exi Min Mat Gar Mat Gar Mat Gar Fac Gar Fac Gar Fac Gar Fac Gar Fac Res Res Acc Hostile Shots Fired 1736 | . 72 13 126 24 . 29 9 16 12 52 11 65 . 47 4 41 17 53 92 42 138 272 186 415 Missed 501 | . 14 1 32 8 . 9 3 3 3 17 6 16 . 19 2 13 8 21 24 17 50 85 48 102 Hits 1235 | . 58 12 94 16 . 20 6 13 9 35 5 49 . 28 2 28 9 32 68 25 88 187 138 313 Melee 5 | . . . 1 . . . . . . . . . . 2 . . . 2 . . . . . . Projectile 1230 | . 58 12 93 16 . 20 6 13 9 35 5 49 . 26 2 28 9 30 68 25 88 187 138 313 AOE 14 | . . 14 . . . . . . . . . . . . . . . . . . . . . . Critical Strikes 41 | . 3 . 2 . . 2 . . 1 . 1 2 . 3 . 1 . 2 4 1 2 7 4 6 Actively Blocked 15 | . . . . . . . . . 1 . . . . . . . . . . . . 4 4 6 Part Disruptions 2 | . . . . . . . . . . . . . . . . . . . . . . . 1 1 Damage Taken 19568 | . 591 481 1210 193 . 297 89 145 131 431 73 617 . 402 107 375 117 345 1443 288 1664 2998 2277 5294 Core 2324 | . 87 94 148 . . 45 . 25 17 49 . 127 . 58 . 70 31 54 139 12 112 228 147 881 Absorbed by Shields 3474 | . . . . . . . . . . 76 24 133 . 56 . . 42 169 364 163 108 574 897 868 Redirected to Shielding 403 | . . . . . . . . 29 71 107 . . . 60 37 9 . . . . . . 90 . Ignored by Resistances 858 | . . . . . . . . . . . . . . . . . . . . . 121 279 288 170 Regen/Repaired (Parts) 303 | . . . 117 . . . . . . . 29 . . . . . . . . . 157 . . . Core Remaining (%) 72 | 100 . 27 . . . 51 . . . . . 60 . . . 81 . 90 . 84 90 82 89 44 Volleys Fired 1054 | 8 69 3 99 10 . 19 21 22 23 70 39 45 2 33 9 36 18 40 85 23 78 116 87 99 Largest 4 | 1 2 2 3 3 . 3 1 1 1 1 1 2 4 4 4 4 4 4 4 4 4 4 4 4 Hottest 258 | 20 70 40 69 69 . 69 60 60 60 60 60 60 80 80 80 80 80 80 105 90 113 208 258 240 Shots Fired 2824 | 8 125 6 283 29 . 29 21 22 23 70 39 50 8 126 33 126 72 160 322 87 293 431 245 216 Gun 2552 | 8 125 6 283 29 . 29 21 22 23 70 39 50 8 126 32 120 72 160 322 87 293 425 116 86 Cannon 254 | . . . . . . . . . . . . . . . . . . . . . . 3 125 126 Launcher 6 | . . . . . . . . . . . . . . . . . . . . . . . 2 4 Special 12 | . . . . . . . . . . . . . . . 1 6 . . . . . 3 2 . Kinetic 2611 | 8 85 6 283 29 . 29 21 22 23 70 39 50 8 126 32 120 72 160 322 87 293 425 170 131 Thermal 185 | . 40 . . . . . . . . . . . . . . . . . . . . 2 71 72 Explosive 6 | . . . . . . . . . . . . . . . . . . . . . . . 2 4 Electromagnetic 10 | . . . . . . . . . . . . . . . . . . . . . . 1 . 9 Robot Hit Streak 21 | 2 9 2 11 13 . 7 5 6 11 10 10 15 2 16 6 11 5 21 16 10 14 14 19 14 Robot Miss Streak 8 | 3 6 2 5 2 . 4 5 5 4 5 7 7 1 3 3 4 4 6 3 8 4 3 3 5 Penetration Max 2 | . . . . . . . . . . . . . . . . . . . 2 . 2 2 1 1 Secondary Targets 50 | . 1 1 7 2 . 2 . . . . . 1 . 6 1 4 . 4 4 3 7 6 1 . Max Gunslinging Chain 2 | . 1 1 1 1 . 1 . . . . . 1 . 2 1 1 . 1 1 1 1 1 1 . Shots Hit Robots 1796 | 4 69 3 189 24 . 20 18 20 18 64 35 37 3 69 18 80 27 99 221 47 198 288 150 95 Core Hits 837 | 2 29 3 80 8 . 10 15 17 20 50 31 28 1 31 7 31 15 41 85 23 67 123 70 50 Critical Kills 21 | . . . 1 . . . . . . . . . . . . . . . . 1 . 16 . 3 Critical Parts Destroyed 26 | . 2 . 2 1 . . . . . . . . . . . . . . 1 . 1 12 3 4 Critical Strikes 55 | . 3 . 3 1 . . . . . . . . . . . . . . 1 1 1 30 7 8 Burn 1 | . 1 . . . . . . . . . . . . . . . . . . . . . . . Destroy 50 | . 2 . 3 1 . . . . . . . . . . . . . . 1 1 1 30 4 7 Blast 4 | . . . . . . . . . . . . . . . . . . . . . . . 3 1 Melee Attacks . | . . . . . . . . . . . . . . . . . . . . . . . . . Impact . | . . . . . . . . . . . . . . . . . . . . . . . . . Slashing . | . . . . . . . . . . . . . . . . . . . . . . . . . Piercing . | . . . . . . . . . . . . . . . . . . . . . . . . . Sneak Attacks . | . . . . . . . . . . . . . . . . . . . . . . . . . Combat Hostiles . | . . . . . . . . . . . . . . . . . . . . . . . . . Follow-up Attacks . | . . . . . . . . . . . . . . . . . . . . . . . . . Damage Inflicted 47503 | 49 929 36 2511 413 . 316 789 970 887 3494 1897 1509 61 1468 361 1544 559 1907 5144 1044 3658 7037 6180 4740 Guns 39663 | 49 907 27 2387 380 . 316 789 970 887 3494 1868 1509 61 1468 361 1544 551 1907 4833 1044 3616 6984 2073 1638 Cannons 5435 | . . . . . . . . . . . . . . . . . . . . . . 53 3274 2108 Explosions 2200 | . . . 113 . . . . . . . . . . . . . . . 307 . . . 813 967 Melee . | . . . . . . . . . . . . . . . . . . . . . . . . . Ramming 205 | . 22 9 11 33 . . . . . . 29 . . . . . 8 . 4 . 42 . 20 27 Kinetic 41746 | 49 543 27 2387 380 . 316 789 970 887 3494 1868 1509 61 1468 361 1544 551 1907 4833 1044 3616 6984 3463 2695 Thermal 3901 | . 364 . . . . . . . . . . . . . . . . . 307 . . 53 2204 973 Explosive 1460 | . . . . . . . . . . . . . . . . . . . . . . . 493 967 Electromagnetic 191 | . . . 113 . . . . . . . . . . . . . . . . . . . . 78 Impact . | . . . . . . . . . . . . . . . . . . . . . . . . . Slashing . | . . . . . . . . . . . . . . . . . . . . . . . . . Piercing . | . . . . . . . . . . . . . . . . . . . . . . . . . Highest Corruption 21 | . . . 1 2 2 2 . . . 4 6 6 . . . 2 . . 2 2 10 15 21 6 Average Corruption 5 | . . . 1 1 2 2 . . . 3 4 6 . . . 1 . . 1 2 6 9 10 4 Corruption Purged . | . . . . . . . . . . . . . . . . . . . . . . . . . Corruption Blocked . | . . . . . . . . . . . . . . . . . . . . . . . . . Effects 234 | . . . . 7 3 9 . . . 6 17 25 . . . 2 . . 7 7 17 68 37 29 Message Errors 48 | . . . . . 1 2 . . . 1 3 6 . . . . . . 3 2 5 9 11 5 Matter Fused 50 | . . . . 2 . 1 . . . 2 2 2 . . . . . . 2 1 4 16 11 7 Heat Flow Errors 28 | . . . . 1 . 4 . . . 1 5 1 . . . . . . . . 2 8 5 1 Energy Discharges 24 | . . . . 2 . . . . . 1 3 5 . . . 1 . . . . 1 4 3 4 Parts Rejected 4 | . . . . . . . . . . . . 2 . . . . . . . . . 2 . . Parts Fused 2 | . . . . . . . . . . . 1 . . . . 1 . . . . . . . . Data Loss (minor) 27 | . . . . . 1 1 . . . 1 3 4 . . . . . . 1 1 1 6 4 4 Data Loss (major) 10 | . . . . 1 1 1 . . . . . 2 . . . . . . 1 1 1 . . 2 Misfires 11 | . . . . . . . . . . . . 1 . . . . . . . . 1 5 1 3 Alerts 5 | . . . . . . . . . . . . 2 . . . . . . . . . 3 . . Misdirections 4 | . . . . . . . . . . . . . . . . . . . . . . 4 . . Weapon Failures 21 | . . . . 1 . . . . . . . . . . . . . . . 2 2 11 2 3 Overload Shots . | . . . . . . . . . . . . . . . . . . . . . . . . . Overflow Damage 370 | . . . . . . . . . . . . . . . . . . . 76 . . . 83 211 Projectiles 204 | . . . . . . . . . . . . . . . . . . . . . . . 80 124 Explosions 166 | . . . . . . . . . . . . . . . . . . . 76 . . . 3 87 Melee . | . . . . . . . . . . . . . . . . . . . . . . . . . Knockbacks 20 | . . . . . . . . . . . 1 . . . . . . . . . . . 14 5 Impact 1 | . . . . . . . . . . . 1 . . . . . . . . . . . . . Kinetic 17 | . . . . . . . . . . . . . . . . . . . . . . . 12 5 Secondary 2 | . . . . . . . . . . . . . . . . . . . . . . . 2 . Self-Inflicted Damage 126 | . . . 27 16 . . . . . . 14 . . . . . 4 . 2 . 21 . 42 . Shots 4 | . . . 1 . . . . . . . . . . . . . . . . . . . 3 . Rammed 20 | . 5 1 2 2 . . . . . . 4 . . . . . 1 . 1 . 2 . 1 1 Targets Rammed 20 | . 5 1 2 2 . . . . . . 4 . . . . . 1 . 1 . 2 . 1 1 Kicked . | . . . . . . . . . . . . . . . . . . . . . . . . . Crushed . | . . . . . . . . . . . . . . . . . . . . . . . . . Highest Temperature 420 | . 114 . 204 163 . 189 144 178 217 290 338 190 40 291 70 120 128 124 234 47 186 190 233 420 Average Temperature 65 | . 35 . 62 73 . 69 64 69 72 82 88 57 27 86 37 45 52 60 48 39 27 41 76 110 Received Heat Transfer 2401 | . 252 . 423 99 . 198 45 54 63 57 26 278 . 115 . 66 . 129 18 28 9 362 151 28 Effects 3 | . . . 2 . . . . . . . . . . . . . . . . . . . . 1 Interference 3 | . . . 2 . . . . . . . . . . . . . . . . . . . . 1 Siege Activations . | . . . . . . . . . . . . . . . . . . . . . . . . . Martial Activations . | . . . . . . . . . . . . . . . . . . . . . . . . . Shielding Activations . | . . . . . . . . . . . . . . . . . . . . . . . . . Robots Disrupted . | . . . . . . . . . . . . . . . . . . . . . . . . . Combat Hostiles . | . . . . . . . . . . . . . . . . . . . . . . . . . Robots Corrupted . | . . . . . . . . . . . . . . . . . . . . . . . . . Combat Hostiles . | . . . . . . . . . . . . . . . . . . . . . . . . . Parts Fried 3 | . . . . . . . . . . . . 1 . . . . 2 . . . . . . . Impact Corruptions 2 | . . . . . . . . . . . . . . . . . . . . . . . 2 . Robots Melted . | . . . . . . . . . . . . . . . . . . . . . . . . . Combat Hostiles . | . . . . . . . . . . . . . . . . . . . . . . . . . Parts Melted . | . . . . . . . . . . . . . . . . . . . . . . . . . Heat Transferred 3071 | . 1147 . . . . . . . . . . . . . . . . . 250 . . . 953 721 Parts Sabotaged . | . . . . . . . . . . . . . . . . . . . . . . . . . Parts Stolen . | . . . . . . . . . . . . . . . . . . . . . . . . . Parts Stripped . | . . . . . . . . . . . . . . . . . . . . . . . . . Power Chain Reactions 3 | . . . . . . . . . . . . . . . . . . . . . . . 3 . Alert | -11 -10 -10 -9 -9 -9 -8 -8 -8 -8 -8 -8 -8 -7 -7 -7 -7 -6 -6 -5 -5 -4 -3 -2 -1 ------- Run | Yrd Mat Min Mat Min Exi Min Mat Gar Mat Gar Mat Gar Fac Gar Fac Gar Fac Gar Fac Gar Fac Res Res Acc Maximum Alert Level 4 | . . . 1 . . . . 1 1 4 3 4 2 3 2 2 1 1 1 1 2 1 2 2 Low Security (%) 41 | 100 100 100 68 100 . 100 100 31 37 6 . . . . 67 32 57 61 55 29 3 62 43 2 Level 1 34 | . . . 31 . . . . 68 62 6 . . 49 18 29 15 42 38 44 70 89 37 36 97 Level 2 12 | . . . . . . . . . . 31 28 4 50 62 2 52 . . . . 6 . 20 . Level 3 9 | . . . . . . . . . . 37 71 66 . 19 . . . . . . . . . . Level 4 2 | . . . . . . . . . . 18 . 28 . . . . . . . . . . . . Level 5 . | . . . . . . . . . . . . . . . . . . . . . . . . . High Security . | . . . . . . . . . . . . . . . . . . . . . . . . . Max Security . | . . . . . . . . . . . . . . . . . . . . . . . . . Peak Influence 1144 | 5 84 30 358 138 . 70 86 352 291 1144 1049 1135 595 896 470 528 287 382 294 384 420 306 433 401 Initial 676 | . . 10 3 138 . . . 37 171 137 557 676 595 219 470 91 277 105 200 154 201 164 160 243 Average 311 | . 27 7 137 81 . 19 32 234 211 756 778 1011 458 504 196 341 179 222 177 285 304 158 216 320 Influence Increases 11151 | 10 366 30 934 75 . 135 234 315 344 1087 830 559 9 677 178 527 266 357 627 300 671 864 980 776 Destroy 0b10 Robot/C 6565 | . 220 20 580 60 . 100 100 220 180 780 400 400 . 460 100 380 140 250 225 210 390 555 480 315 Destroy 0b10 Robot/NC 479 | 10 35 . 70 5 . . 30 . 25 . 50 . 5 . 10 . 15 . 84 . 20 68 44 8 Destroy Leader 1220 | . 58 10 170 10 . 20 38 10 62 40 132 40 . 10 22 40 34 16 100 8 106 140 82 72 Allied During Kill 506 | . . . . . . . . . . 111 124 10 . 38 26 27 28 21 . 24 10 17 70 . Successful Hack 322 | . 8 . 50 . . . 11 . 14 21 12 14 3 14 18 . 16 11 42 . 33 30 4 21 Disable Machine 531 | . . . 30 . . . 30 . 30 30 45 75 . . . . 15 . 108 12 72 24 24 36 Anti-Garrison Action 338 | . . . . . . . . 50 . 50 . . . 100 . 50 . 50 . 38 . . . . Destroy Structure 857 | . . . 4 . . . 25 5 18 25 37 20 1 10 2 . 3 9 68 8 40 30 252 300 Lose Combat Pursuer 333 | . 45 . 30 . . 15 . 30 15 30 30 . . 45 . 30 15 . . . . . 24 24 Influence Decreases 10930 | 10 338 48 590 406 23 135 176 21 485 154 933 465 830 95 944 129 643 126 788 137 741 892 860 961 Entered New Map 3760 | . . 18 7 216 23 . . 21 181 74 587 365 540 95 426 39 251 46 182 67 183 150 126 163 Time Decay 5416 | 10 328 20 446 180 . 110 144 . 294 . 326 . 140 . 368 . 392 . 526 . 428 612 574 518 Lost Part 955 | . 10 10 50 10 . 25 . . 10 40 . 60 . . . 10 . 20 80 30 90 130 100 280 Lost Ally 380 | . . . . . . . . . . 40 20 40 . . . 80 . 60 . 40 40 . 60 . Purge Threat 419 | . . . 87 . . . 32 . . . . . 150 . 150 . . . . . . . . . Squads Dispatched 49 | . 2 . 4 . . . . . 1 . 3 . . . 2 . 4 . 6 . 4 11 5 7 Investigation 3 | . . . . . . . . . . . 1 . . . . . . . 1 . . . 1 . Extermination 17 | . . . . . . . . . . . . . . . 2 . 1 . 2 . 2 4 3 3 Reinforcement 24 | . 2 . 4 . . . . . 1 . 1 . . . . . 3 . 2 . 2 6 1 2 Assault . | . . . . . . . . . . . . . . . . . . . . . . . . . Garrison 5 | . . . . . . . . . . . 1 . . . . . . . 1 . . 1 . 2 Intercept . | . . . . . . . . . . . . . . . . . . . . . . . . . Searches Triggered . | . . . . . . . . . . . . . . . . . . . . . . . . . Construction Impeded 1 | . . . 1 . . . . . . . . . . . . . . . . . . . . . Haulers Reinforced 4 | . . . . . . . . . . . . . . . . . . . . . . 4 . . Active Scanning Responses . | . . . . . . . . . . . . . . . . . . . . . . . . . Cargo Convoy Interrupts . | . . . . . . . . . . . . . . . . . . . . . . . . . Stealth | -11 -10 -10 -9 -9 -9 -8 -8 -8 -8 -8 -8 -8 -7 -7 -7 -7 -6 -6 -5 -5 -4 -3 -2 -1 --------- Run | Yrd Mat Min Mat Min Exi Min Mat Gar Mat Gar Mat Gar Fac Gar Fac Gar Fac Gar Fac Gar Fac Res Res Acc Distress Signals 10 | . 1 . 3 . . . . . 2 . 3 . . . . . . . . . . 1 . . Communications Jammed 181 | . . . . . . . . . . . . . . . . . . . 3 . 12 104 19 43 Distress Signals 179 | . . . . . . . . . . . . . . . . . . . 1 . 12 104 19 43 Times Spotted 475 | . 23 4 46 3 . 5 9 11 15 37 20 19 1 22 9 20 10 17 23 13 33 58 47 30 Peak Tracking Total 7 | . 4 2 6 3 . 3 2 6 4 5 4 5 1 5 3 4 2 4 3 6 5 7 6 6 Tactical Retreats 19 | . 2 . 2 . . 1 . 1 1 2 2 . . 1 . 2 1 . . . . . 2 2 Traps | -11 -10 -10 -9 -9 -9 -8 -8 -8 -8 -8 -8 -8 -7 -7 -7 -7 -6 -6 -5 -5 -4 -3 -2 -1 ------- Run | Yrd Mat Min Mat Min Exi Min Mat Gar Mat Gar Mat Gar Fac Gar Fac Gar Fac Gar Fac Gar Fac Res Res Acc Traps Triggered 53 | . 2 . . . . . . . . 6 1 7 . 8 2 4 1 3 2 4 1 9 3 . Indirectly . | . . . . . . . . . . . . . . . . . . . . . . . . . Trap Hack Attempts . | . . . . . . . . . . . . . . . . . . . . . . . . . Triggered . | . . . . . . . . . . . . . . . . . . . . . . . . . Disarmed . | . . . . . . . . . . . . . . . . . . . . . . . . . Reprogrammed . | . . . . . . . . . . . . . . . . . . . . . . . . . Reused . | . . . . . . . . . . . . . . . . . . . . . . . . . Traps Extracted . | . . . . . . . . . . . . . . . . . . . . . . . . . Installed 1 | . . . . . . . . . . . . . . 1 . . . . . . . . . . Triggered . | . . . . . . . . . . . . . . . . . . . . . . . . . Most Traps Carried 2 | . . . . . . . . . . . . 2 2 2 . . . . . . . . . . Machines | -11 -10 -10 -9 -9 -9 -8 -8 -8 -8 -8 -8 -8 -7 -7 -7 -7 -6 -6 -5 -5 -4 -3 -2 -1 ---------- Run | Yrd Mat Min Mat Min Exi Min Mat Gar Mat Gar Mat Gar Fac Gar Fac Gar Fac Gar Fac Gar Fac Res Res Acc Machines Disabled 45 | . . . 2 . . . 2 1 2 3 3 5 . . . 1 1 1 9 2 6 2 2 3 Max in Single Turn 7 | . . . 1 . . . 1 1 1 1 1 1 . . . 1 1 1 7 1 1 1 1 1 Garrison Access 4 | . . . . . . . . . . . . . . . . . . . . . . 1 2 1 Garrison Relay 5 | . . . . . . . . 1 . 1 . . . . . 1 . 1 . 1 . . . . Energy Cycler 1 | . . . . . . . . . . . . . . . . . . . . . . . . 1 Machines Repaired . | . . . . . . . . . . . . . . . . . . . . . . . . . Machines Dismantled . | . . . . . . . . . . . . . . . . . . . . . . . . . Machines Sabotaged . | . . . . . . . . . . . . . . . . . . . . . . . . . Overloaded Fab Kills . | . . . . . . . . . . . . . . . . . . . . . . . . . Hacking | -11 -10 -10 -9 -9 -9 -8 -8 -8 -8 -8 -8 -8 -7 -7 -7 -7 -6 -6 -5 -5 -4 -3 -2 -1 --------- Run | Yrd Mat Min Mat Min Exi Min Mat Gar Mat Gar Mat Gar Fac Gar Fac Gar Fac Gar Fac Gar Fac Res Res Acc Machines Accessed 91 | . 4 . 8 . 2 . 6 2 6 3 6 2 3 2 7 . 7 1 10 1 6 7 5 3 Terminals 51 | . 3 . 5 . . . 4 2 4 3 4 2 2 2 1 . 4 1 4 1 2 4 1 2 Fabricators 8 | . . . . . . . . . . . . . . . 3 . 2 . 2 . 1 . . . Repair Stations 6 | . . . 1 . . . . . . . 1 . . . . . . . 2 . 2 . . . Recycling Units 4 | . 1 . . . . . . . 1 . . . . . . . . . 1 . . . 1 . Scanalyzers 9 | . . . 2 . . . 1 . . . . . . . 2 . . . . . 1 2 1 . Garrison Access 11 | . . . . . . . 1 . 1 . 1 . 1 . 1 . 1 . 1 . . 1 2 1 Total Hacks 222 | . 10 . 21 . 2 . 19 2 19 4 16 4 11 3 14 . 15 1 25 2 20 13 16 5 Successful 79 | . 4 . 10 . 2 . 5 . 5 2 7 1 5 1 4 . 4 1 8 . 7 3 8 2 Failed 138 | . 5 . 11 . . . 13 2 14 2 9 3 6 2 9 . 11 . 17 2 12 10 7 3 Catastrophic 35 | . . . 3 . . . 4 2 3 . 4 . . 1 2 . 3 . 4 1 1 6 . 1 Database Lockouts 5 | . 1 . . . . . 1 . . . . . . . 1 . . . . . 1 . 1 . Manual 106 | . 9 . 11 . 1 . 12 . 13 . 7 1 8 1 7 . 10 . 7 . 8 8 2 1 Terminals 129 | . 9 . 13 . . . 15 2 14 4 10 4 9 3 2 . 8 1 9 2 8 9 3 4 Fabricators 20 | . . . . . . . . . . . . . . . 7 . 5 . 6 . 2 . . . Repair Stations 18 | . . . 2 . . . . . . . 4 . . . . . . . 6 . 6 . . . Recycling Units 7 | . 1 . . . . . . . 2 . . . . . . . . . 2 . . . 2 . Scanalyzers 28 | . . . 6 . . . 3 . . . . . . . 3 . . . . . 4 3 9 . Garrison Access 18 | . . . . . . . 1 . 3 . 2 . 2 . 2 . 2 . 2 . . 1 2 1 Terminal Hacks 30 | . 1 . 5 . 2 . 1 . 3 2 3 1 3 1 . . 1 1 2 . 1 1 1 1 Record 2 | . . . . . 1 . . . . . . . . . . . . . . . . . 1 . Part Schematic 1 | . . . 1 . . . . . . . . . . . . . . . . . . . . . Robot Analysis 2 | . 1 . . . . . . . . . . . . . . . . . 1 . . . . . Prototype ID Bank 6 | . . . 2 . . . . . 2 . 1 . . . . . . . . . 1 . . . Open Door 1 | . . . . . . . . . . 1 . . . . . . . . . . . . . . Level Access Points 1 | . . . . . . . . . . . . . . . . . . . . . . . . 1 Branch Access Points 2 | . . . 1 . . . . . . . . . . . . . . . . . . 1 . . Emergency Access Points 2 | . . . . . . . . . . . . 1 . 1 . . . . . . . . . . Unreport Threat 3 | . . . 1 . . . 1 . . . . . 1 . . . . . . . . . . . Locate Traps 4 | . . . . . . . . . . . . . 2 . . . 1 . 1 . . . . . Zone Layout 3 | . . . . . . . . . 1 . 2 . . . . . . . . . . . . . Garrison Registry 2 | . . . . . . . . . . 1 . . . . . . . 1 . . . . . . Proto ID Catalog 1 | . . . . . 1 . . . . . . . . . . . . . . . . . . . Fabricator Hacks 3 | . . . . . . . . . . . . . . . 1 . 1 . 1 . . . . . Network Status 3 | . . . . . . . . . . . . . . . 1 . 1 . 1 . . . . . Repair Station Hacks 8 | . . . 2 . . . . . . . 2 . . . . . . . 1 . 3 . . . Scan Component 5 | . . . 1 . . . . . . . 1 . . . . . . . 1 . 2 . . . Repair 3 | . . . 1 . . . . . . . 1 . . . . . . . . . 1 . . . Recycling Unit Hacks 3 | . 1 . . . . . . . 1 . . . . . . . . . 1 . . . . . Retrieve Components 3 | . 1 . . . . . . . 1 . . . . . . . . . 1 . . . . . Scanalyzer 13 | . . . 3 . . . 1 . . . . . . . 1 . . . . . 2 1 5 . Insert Component 1 | . . . 1 . . . . . . . . . . . . . . . . . . . . . Retrieve Study 12 | . . . 2 . . . 1 . . . . . . . 1 . . . . . 2 1 5 . Garrison Access Hacks 11 | . . . . . . . 1 . 1 . 1 . 1 . 1 . 1 . 1 . . 1 2 1 Unlock Access 7 | . . . . . . . 1 . 1 . 1 . 1 . 1 . 1 . 1 . . . . . Seal Access 4 | . . . . . . . . . . . . . . . . . . . . . . 1 2 1 Unauthorized Hacks 11 | . 2 . . . . . 2 . . . 1 . 1 . 1 . 1 . 2 . 1 . . . Terminals 7 | . 2 . . . . . 2 . . . 1 . 1 . . . . . 1 . . . . . Assimilate 1 | . . . . . . . 1 . . . . . . . . . . . . . . . . . Botnet 5 | . 1 . . . . . 1 . . . 1 . 1 . . . . . 1 . . . . . Skim 1 | . 1 . . . . . . . . . . . . . . . . . . . . . . . Fabricators 3 | . . . . . . . . . . . . . . . 1 . 1 . . . 1 . . . Liberate 1 | . . . . . . . . . . . . . . . . . 1 . . . . . . . Fabnet 2 | . . . . . . . . . . . . . . . 1 . . . . . 1 . . . Repair Stations . | . . . . . . . . . . . . . . . . . . . . . . . . . Recycling Units . | . . . . . . . . . . . . . . . . . . . . . . . . . Scanalyzers . | . . . . . . . . . . . . . . . . . . . . . . . . . Garrison Access 1 | . . . . . . . . . . . . . . . . . . . 1 . . . . . Reprogram 1 | . . . . . . . . . . . . . . . . . . . 1 . . . . . Data Cores Recovered 6 | . . . 2 . . . 2 . . . 1 . . . 1 . . . . . . . . . Used 1 | . . . 1 . . . . . . . . . . . . . . . . . . . . . Hacking Detections 76 | . 3 . 7 . . . 5 2 6 2 5 2 3 2 6 . 7 . 9 1 5 6 3 2 Full Trace Events 1 | . . . . . . . . . . . . . . . . . . . . . . . 1 . Feedback Events . | . . . . . . . . . . . . . . . . . . . . . . . . . Feedback Blocked . | . . . . . . . . . . . . . . . . . . . . . . . . . Robot Schematics Acquired . | . . . . . . . . . . . . . . . . . . . . . . . . . Robots Built . | . . . . . . . . . . . . . . . . . . . . . . . . . Authchips . | . . . . . . . . . . . . . . . . . . . . . . . . . Time . | . . . . . . . . . . . . . . . . . . . . . . . . . Total Robot Build Rating . | . . . . . . . . . . . . . . . . . . . . . . . . . Part Schematics Acquired 1 | . . . 1 . . . . . . . . . . . . . . . . . . . . . Parts Built . | . . . . . . . . . . . . . . . . . . . . . . . . . Authchips . | . . . . . . . . . . . . . . . . . . . . . . . . . Time . | . . . . . . . . . . . . . . . . . . . . . . . . . Total Part Build Rating . | . . . . . . . . . . . . . . . . . . . . . . . . . Part Studies Acquired 11 | . . . 2 . . . 1 . . . . . . . . . . . . . 2 1 5 . Parts Repaired 3 | . . . 1 . . . . . . . 1 . . . . . . . . . 1 . . . Time 83 | . . . 26 . . . . . . . 26 . . . . . . . . . 31 . . . Parts Recycled . | . . . . . . . . . . . . . . . . . . . . . . . . . Recycled Matter . | . . . . . . . . . . . . . . . . . . . . . . . . . Retrieved Matter . | . . . . . . . . . . . . . . . . . . . . . . . . . Retrieved Components 22 | . 10 . . . . . . . 2 . . . . . . . . . 10 . . . . . Parts Scanalyzed . | . . . . . . . . . . . . . . . . . . . . . . . . . Part Schematics Acquired . | . . . . . . . . . . . . . . . . . . . . . . . . . Parts Damaged . | . . . . . . . . . . . . . . . . . . . . . . . . . Bothacking | -11 -10 -10 -9 -9 -9 -8 -8 -8 -8 -8 -8 -8 -7 -7 -7 -7 -6 -6 -5 -5 -4 -3 -2 -1 ------------ Run | Yrd Mat Min Mat Min Exi Min Mat Gar Mat Gar Mat Gar Fac Gar Fac Gar Fac Gar Fac Gar Fac Res Res Acc Used RIF Installer 7 | . . . . . . . . 1 . 1 . 1 . 1 . 1 . 1 . 1 . . . . Threat Obfuscator 1 | . . . . . . . . . . . . . . . . . . 1 . . . . . . Signal Jammer 1 | . . . . . . . . . . . . 1 . . . . . . . . . . . . Robot Detection 1 | . . . . . . . . . . 1 . . . . . . . . . . . . . . Watcher Feeds 1 | . . . . . . . . . . . . . . 1 . . . . . . . . . . Structural Interface 1 | . . . . . . . . . . . . . . . . 1 . . . . . . . . Autoassimilate 1 | . . . . . . . . . . . . . . . . . . . . 1 . . . . Robots Hacked 13 | . . . . . . . . . . . . . . . 1 4 1 . . 1 . 2 4 . Non-combat 1 | . . . . . . . . . . . . . . . 1 . . . . . . . . . Combat 12 | . . . . . . . . . . . . . . . . 4 1 . . 1 . 2 4 . Autoassimilated 1 | . . . . . . . . . . . . . . . . . . . . . . . 1 . Robot Hacks Applied 7 | . . . . . . . . . . . . . . . 1 4 . . . . . . 2 . purge_threat 1 | . . . . . . . . . . . . . . . 1 . . . . . . . . . amplify_resonance 1 | . . . . . . . . . . . . . . . . 1 . . . . . . . . overwrite_iff 1 | . . . . . . . . . . . . . . . . 1 . . . . . . . . formatsys_high 4 | . . . . . . . . . . . . . . . . 2 . . . . . . 2 . Relay Couplers Released 33 | . . . . . . . . 3 . 8 . . . 4 . 3 . 4 . 5 . 2 4 . Machine Destruction 25 | . . . . . . . . 3 . 4 . . . . . 3 . 4 . 5 . 2 4 . Programmers 8 | . . . . . . . . . . 4 . . . 4 . . . . . . . . . . Attached 10 | . . . . . . . . . . . . . . . 1 3 . . 2 1 . . 2 1 Fabnet Peak Effective % 3 | . . . . . . . . . . . . . . . . . 3 3 1 1 . 3 1 . Autooverrided 5 | . . . . . . . . . . . . . . . . . 1 . . 1 . 2 1 . Robots Rewired 7 | . . . . . . . . . . 7 . . . . . . . . . . . . . . Allies Hacked 1 | . . . . . . . . . . 1 . . . . . . . . . . . . . . Hacks Repelled . | . . . . . . . . . . . . . . . . . . . . . . . . . Allies | -11 -10 -10 -9 -9 -9 -8 -8 -8 -8 -8 -8 -8 -7 -7 -7 -7 -6 -6 -5 -5 -4 -3 -2 -1 -------- Run | Yrd Mat Min Mat Min Exi Min Mat Gar Mat Gar Mat Gar Fac Gar Fac Gar Fac Gar Fac Gar Fac Res Res Acc Total Allies 28 | . . 2 . . . . . . . 7 . . . 2 . 3 4 . 1 3 . 2 4 . Largest Group 5 | . . 2 . . . . . . . 5 5 3 . 2 2 2 4 3 . 2 2 1 2 . Highest-Rated Group 157 | . . 45 . . . . . . . 115 115 59 . 124 124 119 116 87 . 157 157 56 138 . Highest-Rated Ally 95 | . . 31 . . . . . . . 31 31 21 . 62 62 62 29 29 . 95 95 56 69 . Total Orders . | . . . . . . . . . . . . . . . . . . . . . . . . . Ally Attacks 233 | . . 2 . . . . . . . 33 46 12 . 26 7 7 12 22 . 11 15 10 30 . Total Damage 5131 | . . 21 . . . . . . . 587 450 121 . 716 305 192 168 302 . 350 275 324 1320 . Kills 45 | . . . . . . . . . . 8 6 1 . 7 3 4 1 . . 2 1 3 9 . Allies Corrupted . | . . . . . . . . . . . . . . . . . . . . . . . . . Allies Melted 1 | . . . . . . . . . . . . . . . . . . . . . . . 1 . Intel | -11 -10 -10 -9 -9 -9 -8 -8 -8 -8 -8 -8 -8 -7 -7 -7 -7 -6 -6 -5 -5 -4 -3 -2 -1 ------- Run | Yrd Mat Min Mat Min Exi Min Mat Gar Mat Gar Mat Gar Fac Gar Fac Gar Fac Gar Fac Gar Fac Res Res Acc Active Infowar (turns) 4081 | 4 1241 69 1418 365 336 334 314 . . . . . . . . . . . . . . . . . Optics 1170 | . . . 1131 39 . . . . . . . . . . . . . . . . . . . . Terrain 1711 | 4 397 . . 326 336 334 314 . . . . . . . . . . . . . . . . . Structural 129 | . . . 129 . . . . . . . . . . . . . . . . . . . . . Seismic 1200 | . 844 69 287 . . . . . . . . . . . . . . . . . . . . . Robot Analysis Total 2 | . 1 . . . . . . . . . . . . . . . . . 1 . . . . . Derelict Logs Recovered 2 | . . 1 . 1 . . . . . . . . . . . . . . . . . . . . Drone Launches . | . . . . . . . . . . . . . . . . . . . . . . . . . Drone Recoveries . | . . . . . . . . . . . . . . . . . . . . . . . . . Exploration | -11 -10 -10 -9 -9 -9 -8 -8 -8 -8 -8 -8 -8 -7 -7 -7 -7 -6 -6 -5 -5 -4 -3 -2 -1 ------------- Run | Yrd Mat Min Mat Min Exi Min Mat Gar Mat Gar Mat Gar Fac Gar Fac Gar Fac Gar Fac Gar Fac Res Res Acc Turns Passed 21118 | 88 1245 69 1424 365 336 334 404 287 645 1199 726 1047 287 1559 847 669 933 422 1464 522 1056 2015 1745 1430 Spaces Moved 10240 | 42 426 29 713 236 247 196 191 165 379 663 420 519 115 623 467 304 471 197 738 239 554 1085 761 460 Core 12 | 5 . . . . . . . . . . . 1 . . . . . . . . . . . 6 Treads 1974 | 37 426 15 13 . . . . . . . . 158 115 588 . . . 1 . 68 . . 99 454 Legs . | . . . . . . . . . . . . . . . . . . . . . . . . . Wheels 8254 | . . 14 700 236 247 196 191 165 379 663 420 360 . 35 467 304 471 196 738 171 554 1085 662 . Hover . | . . . . . . . . . . . . . . . . . . . . . . . . . Flight . | . . . . . . . . . . . . . . . . . . . . . . . . . Fastest Speed 50 | 50 160 130 135 135 135 135 140 140 155 150 150 135 240 185 170 170 185 150 135 170 124 119 160 150 Average Speed 170 | 146 238 186 140 135 135 138 155 150 155 152 150 178 240 236 170 170 185 173 159 191 134 144 183 243 Slowest Speed 750 | 160 240 240 320 135 135 150 165 155 155 155 150 750 240 240 185 170 185 250 170 245 185 260 280 480 Overloaded Moves . | . . . . . . . . . . . . . . . . . . . . . . . . . Propulsion Burnouts . | . . . . . . . . . . . . . . . . . . . . . . . . . Robots Hopped . | . . . . . . . . . . . . . . . . . . . . . . . . . Potential Cave-ins 10 | . . . . . . . . . . . . . . . . . . . . . 4 . . 6 Cave-ins Triggered 1 | . . . . . . . . . . . . . . . . . . . . . 1 . . . Exploration Rate (%) 39 | 3 64 9 81 52 61 55 24 35 44 62 55 60 5 64 20 36 27 45 34 36 28 37 25 21 Regions Visited 24 Branch Regions 4 Pre-discovered Areas 2 | . . 1 . . 1 . . . . . . . . . . . . . . . . . . . Known Exits Taken 9 | . . . 1 . . . 1 . 1 . 1 . 1 . 1 . 1 . 1 . . . 1 . Unknown Exits Taken 8 | 1 1 1 . 1 1 1 . . . . . . . . . . . . . . 1 1 . . Scrap Searched 1 | . . . . 1 . . . . . . . . . . . . . . . . . . . . Spaces Dug 50 | . . . . . . . . . 1 . . . . . . . . . . . 6 2 7 34 Terrain Destroyed 383 | . . . . . . . 25 . 16 . 33 . . . . . . . 31 2 20 19 113 124 Melee . | . . . . . . . . . . . . . . . . . . . . . . . . . Projectile 237 | . . . . . . . 25 . 16 . 33 . . . . . . . 12 2 20 15 47 67 AOE 142 | . . . . . . . . . . . . . . . . . . . 19 . . . 66 57 Terrain Rammed . | . . . . . . . . . . . . . . . . . . . . . . . . . Walls Destroyed . | . . . . . . . . . . . . . . . . . . . . . . . . . Machines Disabled . | . . . . . . . . . . . . . . . . . . . . . . . . . Actions | -11 -10 -10 -9 -9 -9 -8 -8 -8 -8 -8 -8 -8 -7 -7 -7 -7 -6 -6 -5 -5 -4 -3 -2 -1 --------- Run | Yrd Mat Min Mat Min Exi Min Mat Gar Mat Gar Mat Gar Fac Gar Fac Gar Fac Gar Fac Gar Fac Res Res Acc Total 12776 | 57 527 37 945 260 251 232 297 201 440 854 514 630 125 692 518 435 526 266 954 280 756 1340 990 649 Wait 789 | . 1 . 80 9 . 15 68 6 22 48 45 20 . 13 24 54 29 10 80 3 89 67 70 36 Move 10220 | 41 425 28 712 235 246 195 190 164 379 662 420 518 115 622 467 303 471 196 738 238 552 1084 760 459 Hop . | . . . . . . . . . . . . . . . . . . . . . . . . . Pick Up 152 | 2 16 . 14 1 1 . 6 3 4 5 2 5 3 3 6 4 2 3 16 4 10 13 19 10 Fast Attach 62 | 6 3 . 3 . . 1 1 . . 1 1 7 . 2 . . 1 . 6 1 3 14 9 3 Attach 99 | . 5 5 7 . . 1 3 . 1 3 . 5 2 . 1 2 3 3 10 2 12 10 10 14 Detach 8 | . 1 . 1 . . . . . . . . . . . . . 1 . . . 1 2 1 1 Swap 118 | . 2 . 15 2 . 1 4 5 5 1 1 . 2 1 4 10 . 4 9 1 5 19 16 11 Drop 103 | . . . 12 1 4 . 4 1 6 2 2 1 1 5 7 2 . 2 9 . 3 15 17 9 Fire 1054 | 8 69 3 99 10 . 19 21 22 23 70 39 45 2 33 9 36 18 40 85 23 78 116 87 99 Melee . | . . . . . . . . . . . . . . . . . . . . . . . . . Ram 12 | . . . 2 2 . . . . . . 4 . . . . . 1 . 1 . 2 . . . Kick . | . . . . . . . . . . . . . . . . . . . . . . . . . Crush 8 | . 5 1 . . . . . . . . . . . . . . . . . . . . 1 1 Escape Stasis 106 | . . . . . . . . . . 24 . 29 . 12 . 24 . 8 . 8 1 . . . Rewire 38 | . . . . . . . . . . 38 . . . . . . . . . . . . . . Trap 1 | . . . . . . . . . . . . . . 1 . . . . . . . . . . Miscellaneous 6 | . . . . . . . . . . . . . . . . . . . . . . . . 6 Route ------- -11/Scrapyard -10/Materials (discovered 3 exits: *Mat x2 / [*Min]) -10/Mines -9/Materials (discovered 7 exits: *Mat x3 / *Min x2 / *Sto x2) -9/Mines (discovered 2 exits: *Mat / *Exi) -9/Exiles -8/Mines (discovered 2 exits: *Mat x2) -8/Materials -8/Garrison -8/Materials (discovered 2 exits: *Fac / Gar) -8/Garrison (discovered 4 exits: *Fac x3 / *Mat) -8/Materials (discovered 2 exits: *Fac / Gar) -8/Garrison (discovered 3 exits: *Fac x3) -7/Factory -7/Garrison (discovered 2 exits: *Fac x2) -7/Factory -7/Garrison -6/Factory -6/Garrison (discovered 3 exits: *Fac x3) -5/Factory (discovered 2 exits: [*Upp] / Gar) -5/Garrison -4/Factory (discovered 2 exits: *Res / [*Upp]) -3/Research (discovered 4 exits: *Res / Arm / *Qua x2) -2/Research -1/Access To Epsilon Eridani History --------- Turn | Location | Event 5 | -11/Scrapyard | Discovered new exit (range 15) 89 | -11/Scrapyard | Entered Materials 310 | -10/Materials | Build established: Mutant 373 | -10/Materials | Discovered new exit (range 16) 633 | -10/Materials | Discovered new exit (range 10) 793 | -10/Materials | Central database locked down 1021 | -10/Materials | Discovered new exit (range 14) 1334 | -10/Materials | Entered Mines 1344 | -10/Mines | Learned location of Mines (-8) 1357 | -10/Mines | Assembled infested the area 1374 | -10/Mines | Core integrity fell below 50% 1392 | -10/Mines | Discovered new exit (range 9) 1403 | -10/Mines | Entered Materials 1403 | -9/Materials | Evolved 2 slots: Utility x1, Weapon x1 1414 | -9/Materials | Lost 5 parts (1p2n2w) 1497 | -9/Materials | Repaired Lgt. Treads 1645 | -9/Materials | Discovered new exit (range 10) 1943 | -9/Materials | Discovered new exit (range 5) 1999 | -9/Materials | Discovered new exit (range 14) 2003 | -9/Materials | Build established: Scavenger-Skirmisher 2091 | -9/Materials | Identified exit to Mines 2091 | -9/Materials | Identified exit to Storage 2285 | -9/Materials | Discovered new exit (range 3) 2465 | -9/Materials | Lost 3 parts (1p1n1w) 2827 | -9/Materials | Entered Mines 3101 | -9/Mines | Discovered new exit (range 5) 3187 | -9/Mines | Deemed a non-threat by the Exiles lab entrance 3187 | -9/Mines | Discovered new exit (range 5) 3192 | -9/Mines | Entered Exiles 3228 | -9/Exiles | Met 8R-AWN 3251 | -9/Exiles | Met EX-HEX 3287 | -9/Exiles | Met EX-BIN 3303 | -9/Exiles | Aligned with FarCom system 3305 | -9/Exiles | Given EX-Vault access code 3336 | -9/Exiles | Opened EX-Vault 3350 | -9/Exiles | Found XL Autogun Array 3375 | -9/Exiles | Warned to stay clear of 0b10 Research branches 3394 | -9/Exiles | Exiles lab attacked by MAIN.C 3425 | -9/Exiles | Learned location of Zion (-6) 3510 | -9/Exiles | Discovered new exit (range 14) 3528 | -9/Exiles | Left Exiles lab with XL Autogun Array 3528 | -9/Exiles | Entered Mines 3603 | -8/Mines | Found a Scrap Suit stashed away for nefarious purposes 3622 | -8/Mines | Discovered new exit (range 13) 3783 | -8/Mines | Lost 3 parts (1n2w) 3789 | -8/Mines | Discovered new exit (range 15) 3862 | -8/Mines | Entered Materials 3862 | -8/Materials | Evolved 2 slots: Utility x1, Weapon x1 3944 | -8/Materials | Central database locked down 4254 | -8/Materials | Identified exit to Garrison 4266 | -8/Materials | Entered Garrison 4293 | -8/Garrison | Installed Relay Interface Framework 4380 | -8/Garrison | Triggered checkpoint 4388 | -8/Garrison | Destroyed 10 combat bots 4422 | -8/Garrison | Triggered checkpoint 4447 | -8/Garrison | Garrison Relay disabled 4503 | -8/Garrison | Discovered new exit (range 14) 4553 | -8/Garrison | Entered Materials 5081 | -8/Materials | Discovered new exit (range 6) 5198 | -8/Materials | Identified exit to Garrison 5198 | -8/Materials | Entered Garrison 5306 | -8/Garrison | Triggered checkpoint 5456 | -8/Garrison | Garrison Relay disabled 5618 | -8/Garrison | Triggered checkpoint 5624 | -8/Garrison | Triggered checkpoint 5708 | -8/Garrison | Triggered checkpoint 5714 | -8/Garrison | Discovered new exit (range 10) 5728 | -8/Garrison | Triggered checkpoint 5749 | -8/Garrison | Build established: Bothacker-Tank 5757 | -8/Garrison | Discovered new exit (range 5) 5813 | -8/Garrison | Triggered checkpoint 5884 | -8/Garrison | Triggered checkpoint 5993 | -8/Garrison | Discovered new exit (range 26) 5993 | -8/Garrison | Discovered new exit (range 48) 5993 | -8/Garrison | Discovered new exit (range 65) 5993 | -8/Garrison | Discovered new exit (range 22) 6170 | -8/Garrison | Triggered checkpoint 6224 | -8/Garrison | Expanded RIF knowledge: Robot Detection 6397 | -8/Garrison | Entered Materials 6397 | -8/Materials | Accompanied by 5 allies 6695 | -8/Materials | Repaired Com. Wheel+ 6820 | -8/Materials | Discovered new exit (range 9) 7093 | -8/Materials | Garrison activated, responded to threat 7122 | -8/Materials | Identified exit to Garrison 7123 | -8/Materials | Entered Garrison 7123 | -8/Garrison | Accompanied by 3 allies 7248 | -8/Garrison | Destroyed 10 combat bots 7296 | -8/Garrison | Triggered checkpoint 7321 | -8/Garrison | Expanded RIF knowledge: Signal Jamming 7378 | -8/Garrison | Discovered new exit (range 14) 7471 | -8/Garrison | Triggered checkpoint 7544 | -8/Garrison | Discovered new exit (range 14) 7677 | -8/Garrison | Triggered checkpoint 7787 | -8/Garrison | Lost 6 parts (1p2n3u) 8028 | -8/Garrison | Discovered new exit (range 11) 8061 | -8/Garrison | Build established: Bothacker-Skirmisher 8170 | -8/Garrison | Entered Factory 8170 | -7/Factory | Evolved 2 slots: Utility x2 8457 | -7/Factory | Identified exit to Garrison 8457 | -7/Factory | Entered Garrison 8465 | -7/Garrison | Build established: Bothacker-Gunner 8499 | -7/Garrison | Triggered checkpoint 8673 | -7/Garrison | Triggered checkpoint 8743 | -7/Garrison | Triggered checkpoint 8779 | -7/Garrison | Destroyed 7 combat bots 8841 | -7/Garrison | Discovered new exit (range 12) 9069 | -7/Garrison | Triggered checkpoint 9385 | -7/Garrison | Triggered checkpoint 9459 | -7/Garrison | Triggered checkpoint 9555 | -7/Garrison | Found embedded Infiltrators 9597 | -7/Garrison | Discovered new exit (range 13) 9825 | -7/Garrison | Triggered checkpoint 9872 | -7/Garrison | Expanded RIF knowledge: Watcher Feeds 9939 | -7/Garrison | Triggered checkpoint 10016 | -7/Garrison | Entered Factory 10016 | -7/Factory | Accompanied by 2 allies 10327 | -7/Factory | Central database locked down 10861 | -7/Factory | Identified exit to Garrison 10863 | -7/Factory | Entered Garrison 10863 | -7/Garrison | Accompanied by 2 allies 10927 | -7/Garrison | Triggered checkpoint 11076 | -7/Garrison | Triggered checkpoint 11163 | -7/Garrison | Triggered checkpoint 11288 | -7/Garrison | Garrison Relay disabled 11299 | -7/Garrison | Triggered checkpoint 11355 | -7/Garrison | Triggered checkpoint 11363 | -7/Garrison | Discovered new exit (range 14) 11387 | -7/Garrison | Expanded RIF knowledge: Structural Interface 11532 | -7/Garrison | Entered Factory 11532 | -6/Factory | Evolved 2 slots: Utility x2 12456 | -6/Factory | Identified exit to Garrison 12465 | -6/Factory | Entered Garrison 12465 | -6/Garrison | Accompanied by 3 allies 12475 | -6/Garrison | Spotted Striker 12496 | -6/Garrison | Destroyed Striker 12548 | -6/Garrison | Triggered checkpoint 12579 | -6/Garrison | Garrison Relay disabled 12620 | -6/Garrison | Expanded RIF knowledge: Threat Obfuscation 12653 | -6/Garrison | Discovered new exit (range 37) 12653 | -6/Garrison | Discovered new exit (range 68) 12653 | -6/Garrison | Discovered new exit (range 54) 12722 | -6/Garrison | Triggered checkpoint 12722 | -6/Garrison | Triggered checkpoint 12738 | -6/Garrison | Triggered checkpoint 12771 | -6/Garrison | Destroyed 7 combat bots 12828 | -6/Garrison | Destroyed 7 combat bots 12887 | -6/Garrison | Entered Factory 12887 | -5/Factory | Evolved 2 slots: Propulsion x1, Utility x1 13177 | -5/Factory | Discovered new exit (range 25) 14055 | -5/Factory | Lost 4 parts (2n1u1w) 14346 | -5/Factory | Identified exit to Garrison 14351 | -5/Factory | Entered Garrison 14351 | -5/Garrison | Accompanied by 1 ally 14423 | -5/Garrison | Expanded RIF knowledge: Autoassimilate 14537 | -5/Garrison | Triggered checkpoint 14612 | -5/Garrison | Discovered new exit (range 7) 14672 | -5/Garrison | Triggered checkpoint 14677 | -5/Garrison | Local machine network offline 14736 | -5/Garrison | Garrison Relay disabled 14784 | -5/Garrison | Found embedded Infiltrators 14873 | -5/Garrison | Entered Factory 14873 | -4/Factory | Accompanied by 2 allies 14873 | -4/Factory | Evolved 2 slots: Power x1, Utility x1 15056 | -4/Factory | Build established: Botlord-Gunner 15161 | -4/Factory | Repaired Railgun 15287 | -4/Factory | Crushed by falling debris 15370 | -4/Factory | Destroyed 8 combat bots 15427 | -4/Factory | Central database locked down 15478 | -4/Factory | Lost 3 parts (1n2u) 15580 | -4/Factory | Lost 3 parts (1u2w) 15672 | -4/Factory | Discovered new exit (range 16) 15781 | -4/Factory | System corruption reached 10% 15885 | -4/Factory | Discovered new exit (range 13) 15929 | -4/Factory | Entered Research 15929 | -3/Research | Evolved 2 slots: Utility x2 16283 | -3/Research | Allied Derelicts emerged from ambush trap array 16393 | -3/Research | P-80 Master assimilated allied 31-IDN(g) 16395 | -3/Research | P-80 Master assimilated allied CM-N17(g) 16527 | -3/Research | Identified exit to Armory 16527 | -3/Research | Identified exit to Quarantine 16587 | -3/Research | Garrison activated, responded to threat 16894 | -3/Research | System corruption reached 10% 17165 | -3/Research | Local machine network offline 17428 | -3/Research | Lost 3 parts (1p1u1w) 17938 | -3/Research | Discovered new exit (range 4) 17944 | -3/Research | Entered another Research area 17944 | -2/Research | Evolved 2 slots: Utility x2 18110 | -2/Research | Central database locked down 18233 | -2/Research | Build established: Botlord-Tank 18468 | -2/Research | Found Prototype Hackware 18698 | -2/Research | Spotted B-90 Cyclops 18701 | -2/Research | Destroyed B-90 Cyclops 18810 | -2/Research | Found Fusion Bomb Launcher 18970 | -2/Research | Lost 3 parts (1p1n1w) 18977 | -2/Research | System corruption reached 10% 19099 | -2/Research | Found Powered Armor 19406 | -2/Research | Discovered new exit (range 30) 19676 | -2/Research | Identified exit to Access 19689 | -2/Research | Entered Access 19689 | -1/Access | Evolved 2 slots: Power x1, Utility x1 19828 | -1/Access | Garrison activated, responded to threat 19986 | -1/Access | Lost 3 parts (1u2w) 20128 | -1/Access | Identified Exp. System Shield 20164 | -1/Access | Identified exit to Surface 21021 | -1/Access | Spotted B-99 Colossus 21022 | -1/Access | Spotted B-99 Colossus 21030 | -1/Access | Energy Cycler disabled 21094 | -1/Access | Core integrity fell below 50% 21119 | *** | Escaped! Last Messages --------------- 21092_ Slug penetrates Sealed Heavy Doors. 21092_ Penetrated by Slug. 21092_ Slug penetrates Sealed Heavy Doors. 21092_ U-05 Engineer lays Concrete. 21093_ Slug penetrates Sealed Heavy Doors. 21093_ Rnf. Quantum Reactor destroyed. 21093_ Slug penetrates Sealed Heavy Doors. 21093_ U-05 Engineer lays Concrete. 21096_ Slug penetrates Sealed Heavy Doors. 21097_ B-99 Colossus exits siege mode. 21097_ Mic. Antimatter Reactor destroyed. 21097_ Knocked back. 21097_ Slug penetrates Sealed Heavy Doors. 21097_ Penetrated by Slug. 21097_ Dropped Huge Storage Unit. 21098_ Acquired 5 matter. 21104_ System corrupted: Heat flow error (+245). 21107_ Identified Imp. Heavy Siege Treads. 21108_ Acquired Fusion Bomb Launcher. 21112_ Main Access Shell breached. Map ----- +----------------------------------------------------+ | ?????????????????????????????????????????????????? | | ?????????????????????????????????????????????????? | | ?????????????????????????????????????????????????? | | ?????????????????????????????????????????????????? | | ?????????????????????????????????????????????????? | | ?????????????????????????????????????????????????? | | ?????????????????????????????????????????????????? | | ?????????????????????????????????????????????????? | | ?????????????????????????????????????????????????? | | ?????????????????????????????????????????????????? | | ?????????????????????????????????????????????????? | | ??????????Y??????????????????????????????????????? | | ?????????????????????????????????????????????????? | | ?????????????????????????????????????????????????? | | ????????????????????? ?????????????????????????? | | ????????????????????? ?????????????????????????? | | ????????????????????? ?????????????????????????? | | ????????????????????# ?????????????????????????? | | ????????????????????# ?????????????????????????? | | ????????????????????# ?????????????????????????? | | ???????????????????? ?????????????????????????? | | ????????????????????# ?????????????????????????? | | ????????????????????# ?????????????????????????? | | ???????Y????????????# """"""????????????????????? | | ????????????????????# " "????????????????????? | | ????????????????????# " @" "????????????????????? | | ????????????????????# !" "" "????????????????????? | | ????????????????????#!!" "????????????????????? | | ????????????????????#|!"" """ #?????????????????? | | ????????????????????#!! #?????????????????? | | ????????????????????#"!""""""""#?????????????????? | | ?????????????????????"!"?????????????????????????? | | ?????????????????????"%"?????????????????????????? | | ????????????????????#"%""""""""#?????????????????? | | ????????????????????#%% #?????????????????? | | ????????????????????# BB #?????????????????? | | ????????????????????#%BB #?????????????????? | | ????????????????????# BB #?????????????????? | | ????????????????????# BB #?????????????????? | | ??????????????????### #?????????????????? | | ??????????????????# # #?????????????????? | | ??????????#########"#### ####?????????????????? | | ??????????# # #????????????????????? | | ??????????# # #????????????????????? | | ??????????# # +????????????????????? | | ??????????# / #????????????????????? | | ??????????# / #????????????????????? | | ??????????# # #?????????????######## | | ??????????# " #?????????????# | | ??????????# " #????????????## | +----------------------------------------------------+ Best States ------------- Heat Dissipation 106 Coolant Potential 80 Energy Generation 65 Energy Capacity 690 Matter Stores 300 Matter Capacity 300 Sight Range 18 Terrain Scan Range 16 Terrain Scan Density 10 Armor Coverage 825 Resistance: TH 25 Resistance: EM 25 Utility Shielding 66 Weapon Shielding 66 Weapon Cycling 20 Phase Shifting 15 Evasion (%) 55 Targeting Accuracy 16 Target Analysis 8 Core Analysis 6 Recoil Reduction 3 Matter Filtering 30 Kinecelleration 40 Offensive Hacking 10 Defensive Hacking 16 Relay Coupler Types 2 Relay Coupler Value 57 Item Schematics ----------------- Plasma Cutter | -9/Materials | Hacked Robot Schematics ------------------ None Fabricated ------------ Nothing Repaired ---------- Lgt. Treads | 16% | -9/Materials Com. Wheel | 3% | -8/Materials Railgun | 10% | -4/Factory Studied --------- Com. Wheel | -9/Materials | Hacked Hvy. Assault Rifle | -9/Materials | Hacked Arm. Wheel | -8/Materials | Hacked KE Penetrator | -4/Factory | Hacked Med. Treads | -4/Factory | Hacked Centrium Wheel | -3/Research | Hacked Antimatter Reactor | -2/Research | Hacked Railgun | -2/Research | Hacked Com. HERF Cannon | -2/Research | Hacked Coil Gun | -2/Research | Hacked Linear Accelerator | -2/Research | Hacked Alien Tech Used ----------------- None Achievements -------------- Explosive Keycard Challenges ------------ None Game ------ Seed VoltaicCloakingDriver Manual? 0 Play Time 02:41:48 Cumulative 270.4 hours Start 2026.01.04 @ 16:58:06 End 2026.01.04 @ 20:11:58 Sessions 3 Manual Loads 0 Difficulty Rogue Special Mode None Game No. 207 Rogue 207 Adventurer 0 Explorer 0 Win Type 0 Total 12 Types 8/0/3/1/0/0/0/0/0/0 Lore% 85 Gallery% 74 Achievement% 57 Wizard Run 0 Options --------- Layout 1 ASCII 0 Keyboard 0 Movement Numpad Keybinds 0 Fullscreen 1 Font 24/Smallcaps Map View 50x35 Zoom Use 0% Tactical HUD 1 Map Filters NONE Filters NONE Steam 1 RUN: 00cd420c-c8f0-419a-beb9-b55898827fda